[Event "Portugal Honour 2021"]
[Site "Fatima"]
[Date "2021.04.12"]
[Round "9.10"]
[White "Barrento, Jorge"]
[Black "Santos, Julio"]
[Result "1-0"]
[ECO "A48"]
[WhiteElo "1724"]
[BlackElo "1884"]
[Annotator "NA RC"]
[PlyCount "89"]
[EventDate "2021.04.06"]
[EventType "tourn"]
[EventCountry "POR"]
[SourceTitle "playchess.com"]
[Source "ChessBase"]
[SourceQuality "1"]
[TimeControl "5400+30"]

1. d4 {[%emt 0:03:07]} Nf6 {[%emt 0:00:00]} 2. Nf3 {[%emt 0:00:04]} g6 {[%emt 0:00:08]} 3. Bg5 {[%emt 0:00:06]} Bg7 {[%emt 0:00:07]} 4. Nbd2 {[%emt 0:00:05]} O-O {[%emt 0:01:33]} 5. e3 {[%emt 0:01:49]} b6 {[%emt 0:01:44]} 6. Bd3 {[%emt 0:00:26]} Bb7 {[%emt 0:00:49]} 7. O-O {[%emt 0:02:14]} d6 {[%emt 0:00:28]} 8. Qe2 {[%emt 0:04:31]} Nbd7 {[%emt 0:00:51]} 9. e4 {[%emt 0:03:23]} e5 {[%emt 0:01:16]} 10. c3 {[%emt 0:04:26]} Re8 {[%emt 0:01:14]} 11. dxe5 {[%emt 0:03:41]} dxe5 {[%emt 0:01:12]} 12. Rfd1 {[%emt 0:03:44]} Qe7 {[%emt 0:05:43]} 13. Bc2 {[%emt 0:07:52]} h6 {[%emt 0:01:06]} 14. Bxf6 {[%emt 0:01:10]} Qxf6 {[%emt 0:03:29]} 15. Nf1 {[%emt 0:03:39]} Nc5 {[%emt 0:03:29]} 16. Qe3 {[%emt 0:04:36]} Red8 {[%emt 0:02:07]} (16... a5 $17) 17. Ng3 {[%emt 0:01:52]} Ne6 {[%emt 0:01:15]} 18. Ne2 {[%emt 0:03:21]} Bf8 {[%emt 0:01:48]} 19. b4 {[%emt 0:03:23]} Kh7 {[%emt 0:03:23]} 20. Ne1 {[%emt 0:03:30]} ({Better is} 20. h4 $15) 20... h5 {[%emt 0:07:30]} 21. Qf3 {[%emt 0:02:48]} Qe7 {[%emt 0:01:17]} 22. h4 {[%emt 0:04:07]} f5 {[%emt 0:09:37]} 23. Qg3 {[%emt 0:03:19]} f4 $17 24. Qh3 {[%emt 0:02:26]} c5 {[%emt 0:03:25]} 25. b5 {[%emt 0:01:24]} c4 {[%emt 0:00:54]} 26. Nf3 {[%emt 0:01:39]} Qf6 {[%emt 0:05:54]} 27. Qxe6 {[%emt 0:00:23]} Qxe6 {[%emt 0:01:20]} 28. Ng5+ {[%emt 0:00:02]} Kg8 {[%emt 0:00:35]} 29. Nxe6 {[%emt 0:00:09]} Rxd1+ {[%emt 0:04:34]} 30. Rxd1 {[%emt 0:00:31]} Re8 {[%emt 0:00:29]} 31. Nxf8 {[%emt 0:03:33]} Kxf8 {[%emt 0:00:12]} 32. f3 {[%emt 0:00:40]} Ke7 {[%emt 0:00:39]} 33. Kf2 {[%emt 0:00:51]} Ke6 {[%emt 0:04:43]} 34. a4 {[%emt 0:01:08]} Re7 {[%emt 0:03:09]} 35. Nc1 {[%emt 0:00:06]} Rg7 {[%emt 0:00:36]} 36. Na2 {[%emt 0:00:14]} g5 {[%emt 0:00:40]} 37. hxg5 {[%emt 0:00:11]} Rxg5 {[%emt 0:00:02]} 38. Nb4 {[%emt 0:00:16]} h4 {[%emt 0:00:47]} 39. Nd5 {[%emt 0:00:23]} Rg7 {[%emt 0:00:14]} 40. Bb1 {[%emt 0:01:03]} Rg8 {[%emt 0:02:20]} 41. Ba2 {[%emt 0:02:42]} Rc8 {[%emt 0:00:15]} 42. Nb4 {[%emt 0:01:22]} Kf6 {[%emt 0:01:36]} 43. Rd7 Rb8 {[%emt 0:00:43]} 44. Nc6 {[%emt 0:03:10]} Ke6 {[%emt 0:00:24]} 45. Nxb8 {[%emt 0:00:13]} 1-0